bitfinex/quotes_SOLUSD_20250918
["timestamp","ask_amount","ask_price","bid_price","bid_amount"]
[1758199500079,31.14,246.36,246.35,0.03]
[1758199500765,31.14,246.36,246.35,0.71]
[1758199501281,31.14,246.36,246.35,0.03]
[1758199501660,31.14,246.36,246.35,0.71]
[1758199503462,31.14,246.36,246.35,0.03]
[1758199504360,31.14,246.36,246.35,0.68]
[1758199505778,31.14,246.36,246.35,0.03]
[1758199506583,40.92342906,246.36,246.35,0.03]
[1758199507392,9.78342906,246.36,246.35,0.03]
[1758199507621,40.92342906,246.36,246.35,0.03]
[1758199508562,38.18816363,246.36,246.35,0.03]
[1758199508768,40.92366714,246.36,246.35,0.03]
[1758199510884,9.78366714,246.36,246.35,0.03]
[1758199511590,40.92366714,246.36,246.35,0.03]
[1758199511774,40.09963356,246.36,246.35,0.03]
[1758199512497,8.95963356,246.36,246.35,0.03]
[1758199512797,40.09963356,246.36,246.35,0.03]
[1758199513003,8.95963356,246.36,246.35,0.03]
[1758199514090,40.09963356,246.36,246.35,0.03]
[1758199515000,39.39963356,246.36,246.35,0.03]
[1758199516900,8.25963356,246.36,246.35,0.03]
[1758199517197,39.39963356,246.36,246.35,0.03]
[1758199523605,40.09963356,246.36,246.35,0.03]
[1758199524324,53.97955071,246.36,246.35,0.03]
[1758199524529,22.83955071,246.36,246.35,0.03]
[1758199524812,59.02451683,246.36,246.35,0.03]
[1758199525490,27.88451683,246.36,246.35,0.03]
[1758199525690,59.02451683,246.36,246.35,0.03]
[1758199527019,27.88451683,246.36,246.35,0.03]
[1758199527914,59.02451683,246.36,246.35,0.03]
[1758199529497,58.32451683,246.36,246.35,0.03]
[1758199529899,54.90513744,246.36,246.35,0.03]
[1758199530301,23.76513744,246.36,246.35,0.03]
[1758199530519,54.90513744,246.36,246.35,0.03]
[1758199530701,22.30010789,246.36,246.35,0.03]
[1758199530900,23.76513744,246.36,246.35,0.03]
[1758199531396,54.90513744,246.36,246.35,0.03]
[1758199533122,53.27955071,246.36,246.35,0.03]
[1758199533423,22.13955071,246.36,246.35,0.03]
[1758199533596,53.27955071,246.36,246.35,0.03]
[1758199534108,22.13955071,246.36,246.35,0.03]
[1758199534308,53.27955071,246.36,246.35,0.03]
[1758199534508,22.13955071,246.36,246.35,0.03]
[1758199534697,53.27955071,246.36,246.35,0.03]
[1758199535523,22.13955071,246.36,246.35,0.03]
[1758199535822,53.27955071,246.36,246.35,0.03]
[1758199536621,22.13955071,246.36,246.35,0.03]
[1758199536826,6.79460401,246.36,246.35,0.75]
[1758199537118,37.93460401,246.36,246.35,0.75]
[1758199537319,6.79460401,246.36,246.35,0.75]
[1758199537823,2.73550351,246.36,246.35,0.75]
[1758199538025,31.14,246.36,246.35,0.75]
[1758199539241,0.33000001,246.37,246.35,0.75]
[1758199539425,0.33000001,246.37,246.35,4.80921842]
[1758199539722,31.14,246.36,246.35,4.08921842]
[1758199540111,31.14,246.36,246.35,4.80921842]
[1758199541999,0.33000001,246.37,246.35,4.80921842]
[1758199542196,31.45000001,246.37,246.36,26.72]
[1758199543316,31.45000001,246.37,246.36,30.7791005]
[1758199543518,0.33000001,246.37,246.36,30.7791005]
[1758199548938,0.06,246.37,246.36,30.7791005]
[1758199555035,31.18,246.37,246.35,0.03]
[1758199555335,0.06,246.37,246.35,0.03]
[1758199555642,31.12,246.36,246.35,0.75]
[1758199556514,0.06,246.37,246.35,4.80926527]
[1758199556929,0.06,246.37,246.36,0.72]
[1758199559538,0.06,246.37,246.36,4.7791005]
[1758199561338,0.06,246.37,246.36,4.8091005]
[1758199562320,0.06,246.37,246.36,0.75]
[1758199562640,0.06,246.37,246.36,0.03]
[1758199563745,31.18,246.37,246.36,0.03]
[1758199563937,32.64502955,246.37,246.36,0.03]
[1758199565165,1.52502955,246.37,246.36,0.03]
[1758199565451,32.64502955,246.37,246.36,0.03]
[1758199565950,31.18,246.37,246.36,0.03]
[1758199569026,31.16,246.37,246.36,0.03]
[1758199570245,0.06,246.37,246.36,0.03]
[1758199570448,31.16,246.37,246.36,0.03]
[1758199572755,31.16,246.37,246.36,0.7]
[1758199573250,31.16,246.37,246.36,0.03]
[1758199574152,31.16,246.37,246.36,0.7]
[1758199574763,0.06,246.37,246.36,0.7]
[1758199575129,0.06,246.37,246.36,4.78920183]
[1758199575436,0.06,246.37,246.36,8.84830233]
[1758199576035,0.06,246.37,246.36,22.44389634]
[1758199576357,0.06,246.37,246.36,22.84980639]
[1758199584468,0.06,246.4,246.36,22.84980639]
[1758199584469,0.06,246.4,246.39,39.59559401]
[1758199584657,0.06,246.4,246.39,40.00145463]
[1758199584840,0.06,246.4,246.39,40.67145463]
[1758199585470,0.06,246.4,246.39,44.7300609]
[1758199585650,0.06,246.4,246.39,46.35426149]
[1758199587960,0.06,246.42,246.41,0.28432314]
[1758199588162,0.06,246.42,246.41,31.79015082]
[1758199588358,0.06,246.42,246.41,32.46015082]
[1758199588676,0.06,246.42,246.41,34.08408764]
[1758199589256,0.06,246.42,246.41,38.14236449]
[1758199593579,0.06,246.42,246.41,38.12236449]
[1758199594464,0.06,246.43,246.42,13.87991715]
[1758199594674,1e-08,246.45,246.44,39.87991715]
[1758199594872,1e-08,246.45,246.44,71.36569543]
[1758199595201,1e-08,246.45,246.44,72.05569543]
[1758199595363,1e-08,246.45,246.44,73.67930268]
[1758199598380,1e-08,246.45,246.44,77.7370855]
[1758199602065,1e-08,246.46,246.45,17.93753532]
[1758199602287,1e-08,246.46,246.45,18.62753532]
[1758199602785,1e-08,246.47,246.45,20.25114257]
[1758199602990,1e-08,246.47,246.46,45.08133936]
[1758199603183,1e-08,246.47,246.46,45.77133936]
[1758199603588,1e-08,246.47,246.46,47.39481482]
[1758199603969,1e-08,246.47,246.46,51.45226836]
[1758199606604,1e-08,246.49,246.48,0.28432314]
[1758199606776,1e-08,246.49,246.48,45.36562958]
[1758199606969,1e-08,246.49,246.48,46.05562958]
[1758199607381,1e-08,246.49,246.48,47.67890739]
[1758199607887,1e-08,246.49,246.48,51.7360317]
[1758199609213,0.06,246.54,246.52,0.28432314]
[1758199609399,0.06,246.54,246.53,31.36432314]
[1758199609910,0.06,246.54,246.53,37.04377066]
[1758199610504,0.06,246.54,246.53,35.4206246]
[1758199611179,0.06,246.54,246.53,36.1106246]
[1758199612583,0.06,246.54,246.53,49.70621861]
[1758199612880,1e-08,246.56,246.54,13.87991715]
[1758199613090,1e-08,246.56,246.55,44.65559401]
[1758199613321,1e-08,246.56,246.55,45.34559401]
[1758199613682,1e-08,246.56,246.55,46.96847665]
[1758199614683,1e-08,246.56,246.55,19.96444906]
[1758199614909,1e-08,246.56,246.55,51.02444906]
[1758199615303,1e-08,246.56,246.55,45.96444906]
[1758199615516,1e-08,246.56,246.55,51.02444906]
[1758199620224,0.66000001,246.56,246.55,19.27444906]
[1758199620399,0.66000001,246.56,246.55,50.33444906]
[1758199620710,0.66000001,246.56,246.55,19.27444906]
[1758199620907,0.66000001,246.56,246.55,43.65156642]
[1758199621098,0.66000001,246.56,246.55,17.65156642]
[1758199621099,1e-08,246.56,246.55,17.65156642]
[1758199621890,0.66000001,246.56,246.55,17.65156642]
[1758199622107,0.66000001,246.56,246.55,48.71156642]
[1758199622389,0.66000001,246.56,246.55,17.65156642]
[1758199622590,1e-08,246.56,246.55,17.65156642]
[1758199624201,1e-08,246.56,246.55,18.59588956]
[1758199624997,1e-08,246.57,246.56,39.87991715]
[1758199625193,0.06,246.59,246.58,0.28432314]
[1758199625393,0.06,246.59,246.58,31.34432314]
[1758199625593,0.06,246.59,246.58,32.00432314]
[1758199625804,0.06,246.59,246.58,33.62707411]
[1758199627010,0.06,246.59,246.58,37.68255306]
[1758199627731,0.06,246.59,246.58,37.02255306]
[1758199628413,0.06,246.59,246.58,37.68255306]
[1758199629323,0.06,246.59,246.58,37.02255306]
[1758199630628,0.06,246.59,246.58,37.68255306]
[1758199633120,0.06,246.59,246.58,6.62255306]
[1758199633329,0.06,246.59,246.58,37.66255306]
[1758199633635,0.06,246.59,246.58,37.00255306]
[1758199634517,0.06,246.59,246.58,37.66255306]
[1758199634901,0.06,246.59,246.58,6.62255306]
[1758199635124,0.74,246.59,246.58,5.67822992]
[1758199635328,0.74,246.59,246.58,4.05547895]
[1758199635529,0.74,246.59,246.58,26.0]
[1758199635735,0.74,246.59,246.55,15.84891779]
[1758199635924,0.68,246.58,246.55,4.08597241]
[1758199636108,0.06,246.59,246.57,26.0]
[1758199636305,0.06,246.59,246.55,4.08597241]
[1758199636618,0.68,246.58,246.55,0.03]
[1758199636931,2.14031076,246.58,246.55,0.03]
[1758199637103,1.46031076,246.56,246.55,0.03]
[1758199637512,2.14031076,246.56,246.55,0.03]
[1758199638326,6.19611867,246.56,246.55,0.03]
[1758199638732,4.73580791,246.56,246.55,0.03]
[1758199639608,6.19611867,246.56,246.55,0.03]
[1758199640014,6.48044181,246.56,246.55,0.03]
[1758199641834,37.52044181,246.56,246.55,0.03]
[1758199642133,40.23977221,246.56,246.55,0.03]
[1758199643531,40.2590261,246.56,246.55,0.03]
[1758199644320,53.85462011,246.56,246.55,0.03]
[1758199647514,22.79462011,246.56,246.55,0.03]
[1758199647719,53.85462011,246.56,246.55,0.03]
[1758199648410,22.79462011,246.56,246.55,0.03]
[1758199648611,53.85462011,246.56,246.55,0.03]
[1758199649027,22.79462011,246.56,246.55,0.03]
[1758199649335,53.85462011,246.56,246.55,0.03]
[1758199649525,53.91462011,246.56,246.55,0.03]
[1758199652133,51.19603582,246.56,246.55,0.03]
[1758199653431,18.67572506,246.56,246.55,0.03]
[1758199653632,36.92044181,246.56,246.55,0.03]
[1758199653936,37.62044181,246.56,246.55,0.03]
[1758199655023,6.56044181,246.56,246.55,0.03]
[1758199655218,37.62044181,246.56,246.55,0.03]
[1758199655526,36.92044181,246.56,246.55,0.03]
[1758199656937,37.62044181,246.56,246.55,0.03]
[1758199657436,36.92044181,246.56,246.55,0.03]
[1758199657751,37.62044181,246.56,246.55,0.03]
[1758199658510,51.21603582,246.56,246.55,0.03]
[1758199658715,53.92715577,246.56,246.55,0.03]
[1758199658915,55.55135636,246.56,246.55,0.03]
[1758199660121,62.21122137,246.56,246.55,0.03]
[1758199660722,82.21122137,246.56,246.55,0.03]
[1758199662223,83.67153213,246.56,246.55,0.03]
[1758199662544,83.67153213,246.56,246.52,1e-08]
[1758199662545,26.0,246.53,246.52,1e-08]
[1758199662727,67.35699689,246.53,246.52,1e-08]
[1758199662925,68.05699689,246.53,246.52,1e-08]
[1758199663122,71.45436133,246.53,246.52,1e-08]
[1758199663525,75.51066279,246.53,246.52,1e-08]
[1758199666353,68.96941975,246.53,246.52,1e-08]
[1758199666637,37.90941975,246.53,246.52,1e-08]
[1758199666824,5.82920147,246.53,246.52,0.66000001]
[1758199667024,38.34951223,246.53,246.52,0.66000001]
[1758199667950,7.28951223,246.53,246.52,0.66000001]
[1758199668143,38.34951223,246.53,246.52,0.66000001]
[1758199668449,36.88920147,246.53,246.52,0.66000001]
[1758199669437,5.82920147,246.53,246.52,0.66000001]
[1758199669745,36.88920147,246.53,246.52,0.66000001]
[1758199670348,5.82920147,246.53,246.52,0.66000001]
[1758199670526,36.88920147,246.53,246.52,0.66000001]
[1758199670726,5.82920147,246.53,246.52,0.66000001]
[1758199670929,1.77290001,246.53,246.52,0.66000001]
[1758199671238,32.83290001,246.53,246.52,0.66000001]
[1758199672437,7.28951223,246.53,246.52,1e-08]
[1758199672661,38.34951223,246.53,246.52,1e-08]
[1758199674351,41.06402012,246.53,246.52,1e-08]
[1758199674548,41.06402012,246.53,246.52,0.66000001]
[1758199676055,38.34951223,246.53,246.52,0.66000001]
[1758199676232,41.06530565,246.53,246.52,0.66000001]
[1758199676559,41.06530565,246.53,246.52,1e-08]
[1758199677135,41.06530565,246.53,246.52,0.66000001]
[1758199678250,4.48869343,246.53,246.52,0.66000001]
[1758199678549,32.83290001,246.53,246.52,0.66000001]
[1758199679128,1.77290001,246.53,246.52,0.66000001]
[1758199679327,32.83290001,246.53,246.52,4.71646601]
[1758199680542,1.77290001,246.53,246.52,0.66000001]
[1758199680758,32.83290001,246.53,246.52,0.66000001]
[1758199681347,41.07767459,246.53,246.52,1e-08]
[1758199682458,41.07767459,246.53,246.52,0.71000001]
[1758199683644,41.13767459,246.53,246.52,0.71000001]
[1758199683867,41.13767459,246.53,246.52,1e-08]
[1758199684159,39.36477458,246.53,246.52,1e-08]
[1758199684865,39.36477458,246.53,246.52,0.71000001]
[1758199685359,37.90446382,246.53,246.52,1e-08]
[1758199685663,39.36477458,246.53,246.52,1e-08]
[1758199685877,37.90446382,246.53,246.52,0.71000001]
[1758199686037,39.36477458,246.53,246.52,0.71000001]
[1758199686553,39.36477458,246.53,246.52,1e-08]
[1758199686762,37.90446382,246.53,246.52,1e-08]
[1758199686952,39.36477458,246.53,246.52,1e-08]
[1758199688069,37.90446382,246.53,246.52,0.71000001]
[1758199688360,39.36477458,246.53,246.52,0.71000001]
[1758199688569,39.36477458,246.53,246.52,1e-08]
[1758199690159,55.40500249,246.53,246.52,1e-08]
[1758199690380,63.18416514,246.53,246.52,1e-08]
[1758199690541,59.78593477,246.53,246.52,1e-08]
[1758199690872,63.70075568,246.53,246.52,1e-08]
[1758199691657,60.28593477,246.53,246.52,1e-08]
[1758199691853,57.15947229,246.53,246.52,1e-08]
[1758199692575,10.75924438,246.53,246.52,1e-08]
[1758199692745,39.88477458,246.53,246.52,0.71000001]
[1758199692944,38.42446382,246.53,246.52,0.71000001]
[1758199693145,38.44446382,246.53,246.52,0.71000001]
[1758199694165,40.72948461,246.53,246.52,0.71000001]
[1758199694870,41.71380775,246.53,246.52,1e-08]
[1758199695071,41.01380775,246.53,246.52,1e-08]
[1758199697067,40.72948461,246.53,246.52,0.71000001]
[1758199697266,40.72948461,246.53,246.52,1e-08]
[1758199700348,39.65922602,246.53,246.52,1e-08]
[1758199700574,36.67318315,246.53,246.52,1e-08]
[1758199701551,40.72948461,246.53,246.52,1e-08]
[1758199703170,13.74426517,246.53,246.52,1e-08]
[1758199703351,45.12858831,246.53,246.52,1e-08]
[1758199703554,61.00920311,246.53,246.52,1e-08]
[1758199703863,59.21888698,246.53,246.52,1e-08]
[1758199707052,22.8488454,246.53,246.52,1e-08]
[1758199707369,54.60940176,246.53,246.52,1e-08]
[1758199707547,58.02401067,246.53,246.52,1e-08]
[1758199707753,59.64834317,246.53,246.52,1e-08]
[1758199711485,58.02401067,246.53,246.52,1e-08]
[1758199712275,55.73898988,246.53,246.52,1e-08]
[1758199712587,58.02401067,246.53,246.52,0.66000001]
[1758199712769,54.60940176,246.53,246.52,0.66000001]
[1758199713268,54.60940176,246.53,246.52,1e-08]
[1758199714186,54.60940176,246.53,246.52,0.66000001]
[1758199714994,54.60940176,246.53,246.52,1e-08]
[1758199715654,54.60940176,246.53,246.52,0.66000001]
[1758199716085,54.60940176,246.53,246.52,1e-08]
[1758199717383,38.72878696,246.53,246.52,1e-08]
[1758199717587,41.01380775,246.53,246.52,1e-08]
[1758199717775,9.91380775,246.53,246.52,1e-08]
[1758199717980,3.28816236,246.53,246.52,0.66000001]
[1758199718161,2.78816236,246.53,246.52,0.66000001]
[1758199718578,33.86816236,246.53,246.52,0.66000001]
[1758199718987,2.78816236,246.53,246.52,0.66000001]
[1758199719192,33.86816236,246.53,246.52,0.66000001]
[1758199719879,2.78816236,246.53,246.52,0.66000001]
[1758199720295,33.86816236,246.53,246.52,0.66000001]
[1758199722969,2.78816236,246.53,246.52,0.66000001]
[1758199723293,40.18948461,246.53,246.52,0.66000001]
[1758199723783,40.18948461,246.53,246.52,1e-08]
[1758199723984,40.47749675,246.53,246.52,1e-08]
[1758199724600,41.16749675,246.53,246.52,1e-08]
[1758199724975,40.47749675,246.53,246.52,1e-08]
[1758199732101,9.41749675,246.53,246.52,1e-08]
[1758199732286,40.47749675,246.53,246.52,1e-08]
[1758199732697,43.89231095,246.53,246.52,1e-08]
[1758199733578,12.83231095,246.53,246.52,1e-08]
[1758199733792,43.89231095,246.53,246.52,1e-08]
[1758199733995,46.17733174,246.53,246.52,1e-08]
[1758199734800,46.86733174,246.53,246.52,1e-08]
[1758199736777,43.45251754,246.53,246.52,1e-08]
[1758199736977,39.59559401,246.51,246.5,0.03]
[1758199737286,81.37466807,246.51,246.5,0.03]
[1758199737594,78.64748695,246.51,246.5,0.03]
[1758199737779,80.27201736,246.51,246.5,0.03]
[1758199739095,84.32864792,246.51,246.5,0.03]
[1758199739493,83.63864792,246.51,246.5,0.03]
[1758199740102,95.93998745,246.51,246.5,0.03]
[1758199741797,95.93998745,246.51,246.5,0.75]
[1758199741985,99.35591214,246.51,246.5,0.75]
[1758199742185,99.35591214,246.51,246.5,0.03]
[1758199742982,95.93998745,246.51,246.5,0.03]
[1758199744409,99.35522406,246.51,246.5,0.03]
[1758199744579,95.93998745,246.51,246.5,0.03]
[1758199744784,96.59998745,246.51,246.5,0.03]
[1758199744984,95.93998745,246.51,246.5,0.03]
[1758199745200,99.35507286,246.51,246.5,0.03]
[1758199745902,95.93998745,246.51,246.5,0.03]
[1758199747100,99.35486177,246.51,246.5,0.03]
[1758199747520,95.93998745,246.51,246.5,0.03]
[1758199747890,99.35464338,246.51,246.5,0.69]
[1758199748382,37.82766826,246.51,246.5,0.69]
[1758199748584,9.07350271,246.51,246.5,0.69]
[1758199748802,40.13350271,246.51,246.5,0.69]
[1758199750884,42.4185235,246.51,246.5,0.69]
[1758199751196,60.37309658,246.51,246.5,0.03]
[1758199751382,61.99762699,246.51,246.5,0.03]
[1758199751782,61.33762699,246.51,246.5,0.03]
[1758199752427,0.28432314,246.49,246.47,0.03]
[1758199752695,79.37169124,246.48,246.47,0.03]
[1758199753614,80.99635361,246.48,246.47,0.03]
[1758199753794,80.17531308,246.48,246.47,0.03]
[1758199755593,84.23243739,246.48,246.47,0.03]
[1758199756211,80.81753545,246.48,246.47,0.69]
[1758199757015,49.75753545,246.48,246.47,0.69]
[1758199757201,80.81753545,246.48,246.47,0.69]
[1758199757608,34.41363804,246.48,246.47,0.69]
[1758199757915,39.31295593,246.48,246.47,0.69]
[1758199760699,37.84897567,246.48,246.47,0.69]
[1758199761017,39.31295593,246.48,246.47,0.69]
[1758199762590,37.84897567,246.48,246.47,0.69]
[1758199762790,39.31295593,246.48,246.47,0.69]
[1758199765130,37.84897567,246.48,246.47,0.69]
[1758199765294,39.31295593,246.48,246.47,0.69]
[1758199765728,39.31295593,246.48,246.47,0.03]
[1758199768324,39.31295593,246.48,246.47,0.69]
[1758199773136,33.79185136,246.48,246.47,0.69]
[1758199773305,2.73185136,246.48,246.47,0.69]
[1758199773508,33.79185136,246.48,246.47,0.69]
[1758199775606,2.73185136,246.48,246.47,0.69]
[1758199775843,31.06,246.48,246.47,4.74728891]
[1758199776014,0.06,246.52,246.47,4.74728891]
[1758199776222,2.79275563,246.52,246.48,0.72]
[1758199776413,23.66,246.51,246.48,0.72]
[1758199776602,31.06,246.51,246.48,0.72]
[1758199777708,0.06,246.52,246.48,0.72]
[1758199778008,0.06,246.52,246.49,4.05695971]
[1758199778203,0.06,246.52,246.5,0.72]
[1758199779628,0.06,246.52,246.51,26.0]
[1758199780134,0.06,246.52,246.51,26.72]
[1758199780433,0.06,246.52,246.51,30.77663056]
[1758199788762,0.06,246.52,246.51,44.65654771]
[1758199789851,0.06,246.52,246.51,46.27982551]
[1758199790362,0.06,246.52,246.51,75.69654771]
[1758199790521,0.06,246.52,246.51,46.27982551]
[1758199791720,0.06,246.52,246.51,77.31982551]
[1758199793244,0.06,246.52,246.51,4.05663056]
[1758199793429,0.06,246.52,246.48,0.72]
[1758199793628,0.06,246.52,246.49,26.0]
[1758199794131,0.06,246.52,246.49,26.72]
[1758199794536,0.06,246.52,246.49,26.0]
[1758199794840,0.06,246.52,246.49,30.05695971]
[1758199795449,2.12398026,246.51,246.47,0.03]
[1758199795742,0.66,246.5,246.47,0.03]
[1758199796525,0.66,246.49,246.47,0.03]
[1758199796725,0.69,246.5,246.47,0.03]
[1758199798329,4.74681371,246.5,246.47,0.03]
[1758199798530,0.69,246.49,246.47,0.03]
[1758199799262,4.05699876,246.49,246.47,0.03]
[1758199799421,2.15398026,246.48,246.47,0.03]
[1758199801238,6.21110457,246.48,246.47,0.03]
[1758199802354,20.09102172,246.48,246.47,0.03]
[1758199803558,22.80823397,246.48,246.47,0.03]
[1758199805154,7.7486597,246.48,246.47,0.03]
[1758199805333,6.49542771,246.48,246.47,0.03]
[1758199806440,37.55542771,246.48,246.47,0.03]
[1758199808254,6.49542771,246.48,246.47,0.03]
[1758199808451,37.55542771,246.48,246.47,0.03]
[1758199808648,51.15102172,246.48,246.47,0.03]
[1758199808862,51.15102172,246.48,246.42,0.03]
[1758199808863,13.59559401,246.44,246.42,0.03]
[1758199809063,52.25981845,246.43,246.42,0.03]
[1758199809359,52.95981845,246.43,246.42,0.03]
[1758199809737,57.01776594,246.43,246.42,0.03]
[1758199812461,69.40954185,246.43,246.42,0.03]
[1758199814238,73.74888631,246.43,246.42,0.03]
[1758199815468,0.28432314,246.38,246.36,0.03]
[1758199815678,32.8083034,246.37,246.36,0.03]
[1758199815964,33.63301527,246.37,246.36,0.03]
[1758199817866,37.69195101,246.37,246.36,0.03]
[1758199819065,38.39195101,246.37,246.36,0.03]
[1758199819453,37.69195101,246.37,246.36,0.03]
[1758199822658,51.98754502,246.37,246.36,0.03]
[1758199823252,51.28754502,246.37,246.36,0.03]
[1758199824354,51.98754502,246.37,246.36,0.03]
[1758199825671,51.98754502,246.37,246.33,0.03]
[1758199825672,39.59559401,246.34,246.33,0.03]
[1758199825855,75.53730141,246.34,246.33,0.03]
[1758199826059,76.23730141,246.34,246.33,0.03]
[1758199826662,80.29673146,246.34,246.33,0.03]
[1758199828867,81.40133147,246.34,246.33,0.03]
[1758199829471,84.10298759,246.34,246.33,0.03]
[1758199831570,84.10298759,246.34,246.32,1e-08]
[1758199831571,13.87991715,246.33,246.32,1e-08]
[1758199831772,39.87991715,246.31,246.3,0.03]
[1758199831976,73.24860928,246.31,246.3,0.03]
[1758199832175,93.28335302,246.31,246.3,0.03]
[1758199833693,97.3432775,246.31,246.3,0.03]
[1758199834088,63.97458537,246.31,246.3,0.03]
[1758199834293,97.3432775,246.31,246.3,0.03]
[1758199836189,100.04681063,246.31,246.3,0.03]
[1758199836379,66.2632775,246.31,246.3,0.72]
[1758199836589,97.3432775,246.31,246.3,0.72]
[1758199837075,66.2632775,246.31,246.3,0.72]
[1758199837281,71.3432775,246.31,246.3,0.72]
[1758199838893,71.3432775,246.31,246.3,0.03]
[1758199840087,71.3432775,246.31,246.3,0.72]
[1758199840277,74.05251204,246.31,246.3,0.72]
[1758199841203,74.05251204,246.31,246.3,0.03]
[1758199842004,74.05251204,246.31,246.3,0.72]
[1758199843578,22.74397828,246.31,246.3,0.72]
[1758199843786,51.11474374,246.31,246.3,0.72]
[1758199846296,20.03474374,246.31,246.3,0.72]
[1758199846490,20.03474374,246.31,246.3,4.78008932]
[1758199846689,51.11474374,246.31,246.3,4.78008932]
[1758199848205,20.03474374,246.31,246.3,4.78008932]
[1758199853213,20.03474374,246.31,246.3,0.72]
[1758199853706,51.11474374,246.31,246.3,0.72]
[1758199853891,20.03474374,246.31,246.3,0.72]
[1758199854095,51.11474374,246.31,246.3,0.72]
[1758199854514,20.03474374,246.31,246.3,0.72]
[1758199854703,51.11474374,246.31,246.3,0.72]
[1758199856210,51.11474374,246.31,246.3,0.69]
[1758199856914,53.40343587,246.31,246.3,0.03]
[1758199861001,51.11474374,246.31,246.3,0.03]
[1758199862033,51.11474374,246.31,246.3,0.69]
[1758199862621,51.11474374,246.31,246.3,0.03]
[1758199862997,31.08,246.31,246.3,0.03]
[1758199863213,31.08,246.31,246.3,0.71]
[1758199864512,31.08,246.31,246.3,0.03]
[1758199864708,33.36869213,246.31,246.3,0.03]
[1758199865126,38.09861661,246.31,246.3,0.03]
[1758199865505,51.69421062,246.31,246.3,0.03]
[1758199866645,54.41873148,246.31,246.3,0.03]
[1758199866821,54.70305462,246.31,246.3,0.03]
[1758199869026,54.03305462,246.31,246.3,0.03]
[1758199869207,22.66873148,246.31,246.3,0.03]
[1758199869831,53.74873148,246.31,246.3,0.03]
[1758199870208,33.36869213,246.31,246.3,0.71]
[1758199871028,2.28869213,246.31,246.3,0.71]
[1758199871234,31.08,246.31,246.3,0.71]
[1758199871420,33.36869213,246.31,246.3,0.71]
[1758199871733,33.36869213,246.31,246.3,0.03]
[1758199871917,33.42869213,246.31,246.3,0.03]
[1758199872330,37.48861661,246.31,246.3,0.03]
[1758199874639,7.07861661,246.31,246.3,0.03]
[1758199874817,54.47851363,246.31,246.3,0.03]
[1758199875006,54.76283677,246.31,246.3,0.03]
[1758199875705,53.93981544,246.31,246.3,0.03]
[1758199876831,53.95981544,246.31,246.3,0.03]
[1758199877238,66.62981544,246.31,246.3,0.03]
[1758199877540,54.45981544,246.31,246.3,0.03]
[1758199884947,15.06126481,246.29,246.28,0.03]
[1758199885239,48.92556782,246.29,246.28,0.03]
[1758199885429,49.42556782,246.29,246.28,0.03]
[1758199885739,13.59559401,246.28,246.27,1e-08]
[1758199886040,0.28432314,246.27,246.26,0.03]
[1758199886337,55.74257416,246.27,246.26,0.03]
[1758199886718,59.80315807,246.27,246.26,0.03]
[1758199886919,60.40775808,246.27,246.26,0.03]
[1758199887641,59.73775808,246.27,246.26,0.03]
[1758199893047,70.58921785,246.27,246.23,0.03]
[1758199893346,46.92394801,246.24,246.23,0.03]
[1758199893554,80.76825102,246.24,246.23,0.03]
[1758199894435,82.39456478,246.24,246.23,0.03]
[1758199895339,86.4556434,246.24,246.23,0.03]
[1758199896863,86.9556434,246.24,246.23,0.03]
[1758199902652,87.93996654,246.24,246.23,0.03]
[1758199902860,87.93996654,246.24,246.22,0.2]
[1758199902861,13.87991715,246.23,246.22,0.2]
[1758199903155,18.76989096,246.23,246.22,0.2]
[1758199903359,19.87449097,246.23,246.22,0.2]
[1758199903853,23.93573452,246.23,246.22,0.2]
[1758199904452,23.23573452,246.23,246.22,0.2]